Workbook

Sheet Instructions
B2: Instructions for Spartan Animal Tissue Compost System Planner
B3: v1.02
B5: 1. Overview
B6: Spartan Animal Tissue Compost (ATC) System Planner is an Excel application that assists in designing a composting system for routine or normal production, using a static piling approach, including facilities and material flow in batches. The spreadsheet has been designed for composting animal tissue routinely accumulated as whole carcasses (on-farm, live animal businesses) or as animal tissue co-products (animal processing operations).
B7: There are four general composting systems or methods which may be used to compost animal tissues in static batches: piled in bins, open piles adjacent to one another, piles that overlap slightly, and windrows. Static means that animal tissue and compost materials are mixed and left to stand motionless or idle for a planned period of time.
B8: Spartan ATC System Planner was developed by Dr. Dale Rozeboom (Department of Animal Science, Michigan State University), Dr. Howard Person (formerly Department of Agricultural Engineering Michigan State University), Suzanne Reamer (Michigan Natural Resource Conservation Service) and Robert Kriegel M.S. (ANR Technology Services, Michigan State University), and Dean Ross (Agrosecurity Consulting; revisions made in version 1.01, 1.02).
B9: For inquiries about this application contact rozeboom@msu.edu.
B11: 2. System Requirements
B12: Excel 2003. Due to changes in how Excel handles macros, there are separate versions of this application for Excel 2003 and for Excel 2007-2010. You must have Microsoft Excel 2003 or later to run this version of Spartan ATC System Planner. The spreadsheet contains macros, so MS Excel's security must be set to moderate or low to allow the macros to function. To change the security setting select Tools > Macro > Security from Excel's main menu and set security to moderate or low. Since macros are only loaded when a file is first opened, you need to close and reopen a file after changing Excel's macro security settings. Depending on your security setting, Excel may ask you whether to enable or disable macros when you open the file. Macros must be enabled for the application to work correctly.
B13: Excel 2007 and later. Due to changes in how Excel handles macros, there are separate versions of this application for Excel 2003 and for Excel 2007-2010. You must have Microsoft Excel 2007 or later to run this version of Spartan ATC System Planner. The spreadsheet contains macros, so MS Excel's security must be set to moderate or low to allow the macros to function. To change the security setting select the Developer tab on Excel's main menu, then select 'Macro Security' from the toolbar and Tools > Macro > Security from Excel's main menu and set security to enable macros. Depending on your security setting, Excel may ask you whether to enable or disable macros when you open the file. Macros must be enabled for the application to work operate correctly.
B15: 3. Planning a Compost System
B16: Spartan ATC System Planner assists producers of animal tissues with sizing of a composting system. First, the program provides an estimate of amount of animal tissue over time (i.e. rate of accumulation) using enterprise size, mortality rates specific to phases of animal production, and weights (carcasses or by-products). You may enter more than one type of animal production enterprise. Second, Spartan ATC System Planner assists with the selection of a composting system which is sized to accommodate the composting of that amount of mortality in a desired time. You will enter system dimensions using your best reasoning, or by "trial and error" so that "volume needed per desired time" is equal to or slightly greater than the "effective volume" of the bin, pile, or windrow.
B17: Throughout the spreadsheet enter appropriate information into cells which are shaded green.
B18: The Excel workbook contains the following two worksheets:
B19: Instructions. This sheet contains instructions for using the System Planner worksheet.
B20: System Planner. Use this sheet to determine the material flow and size of a static piling compost system or operation. You will determine animal tissue accumulation rate (amount per time) and then plan how to accomplish the composting of that amount of tissue (flow as batches) through a compost system of a size which you select for your situation.
B22: a. Introductory Steps
B23: In the first 11 rows of the System Planner worksheet enter the following general information about your farm or business:
B24: Name and address: Enter the enterprise name and address information for this plan.
B25: Select producer type: Using the drop-down list, select one or more different animal production enterprises. A table for that specie will appear below to be used to estimate the amount of animal tissue accumulated over time. If more than one animal production enterprise is selected, the amount of animal tissue accumulated over time will be a sum of all enterprises.
B26: Select type of composting system: Using the drop-down list, select one system you plan to use. This is not a final decision. You may switch from one system to another at any time. Alternatively, all systems may be evaluated at one time. The advantages and disadvantages of each system are described in the Michigan Animal Tissue Compost Operational Standard available at the following URL:
B27: http://www.msu.edu/~rozeboom/
B28: Target animal tissue density: Also known as "volume factor" or "volume coefficient" or the "bulking agent to mortality ratio". This is the most important factor in determining composting volume. This density has been determined through experimentation and animal tissue composting has been successfully accomplished using densities varying from 0.05 to 15 lb/ft3. However, when animal tissue density is greater than 10 lb/ft3, intensive management of aeration and moisture is necessary. The Spartan ATC System Planner default is 10 lb/ft3.
B30: b. Animal Production Information
B31: In the next portion of the System Planner worksheet you enter production information in order to estimate the routine or normal rate of animal tissue accumulation.
B32: For each animal production enterprise selected, enter measures in the green shaded cells. For specific help with understanding what information is being requested, a comment will appear when the cursor is placed over the name of the item for which a number is being requested.
B34: c. Composting Systems Information
B35: In the lowest portion of the System Planner you enter dimensions of compost material in specific shapes and the months or fraction of months you plan on leaving a batch of compost in your system.
B36: A batch is the animal tissue and amendment accumulated together in a planned period of time. Batches provide for appropriately timed temperature monitoring, aerating, and final utilization. Initial additions, or loading of new dead animals and bulking agent is limited to a planned time period which is based on animal tissue accumulations over time (determined in the preceding portion of this worksheet ) and an appropriately sized composting system (determined in the following portion of this worksheet).
B37: Desired time: Enter an estimate of the number of months that will be required to start and complete the creation of a new batch. The batch may be kept in one bin or in the form of a windrow or pile. Desired time is the period over which animal tissue will be added. Most often a period of 1 month is taken to create a batch, but a range from 0.25 to 2 months may be considered depending on daily mortality rate.
B38: Length, width, and height: Each dimension is described in a comment that will appear when the cursor is placed over the name of the measure. Enter dimensions so that batch "volume needed per desired time" is equal to or slightly greater than the "effective volume" of that batch in that selected system. Enter dimensions by "trial and error."
B39: Duration of active composting in bin: Number of months after a batch has been created. Time required to decompose tissues is dependent on the maturity of the animals. The number of months of well-managed active composting in static batches for the decomposition of all soft tissues is shown in the table below for carcasses of various sizes. Mature swine hides will persist longer than those of mature bovine or equine, and all other soft tissues.
B40: Table 1. Months of active composting suggested for the decomposition of soft animal tissues.
B41: Carcass size, lb | C41: Suggested number of months for well-managed active composting in static batches for the decomposition of all soft tissues
B42: 1 to 25 | C42: 1
B43: 25 to 125 | C43: 1
B44: 125 to 250 | C44: 2
B45: 250 to 500 | C45: 2
B46: 500 to 1000 | C46: 2
B48: Actively or forced aerated batches (bins, piles, windrows or contained vessels) require up to 50% less time. It has been reported that composting hog farm mortality using the traditional static batch system was a 180-day process, but with the grinding of carcasses and the use of a rotating drum system composting time reduced the time needed to compost all soft tissue by 30 to 50%.
B49: Equipment working space or apron width: This is the area around batches needed for formation and mixing using a bucket loader. It is sometimes called an apron. Enter the linear distance from the edge of the compost material (where is meets the inside border of the apron) to outside border of apron. This space depends on size of tractor and loader.
B50: The Spartan ATC System Planner has been developed to plan continuous flow composting systems across a range of herd and facility size and management strategies. The Planner is programmed to report a minimum default of 3 piles or bins required under each planning scenario entered by the user. Underlying management assumptions suggest that there will be at least one bin or pile built and operational, one bin or pile under construction and one bin or pile ready to accept compost or act as a mixing location. In situations where annual material flow into the system is very small or highly intermittent, the Spartan ATC System Planner may overestimate the required number of bins, piles or space required. In situations when planning is for the composting of individual animal mortalities or other materials, the Spartan Emergency ATC Planner may provide a better model. It is designed to plan for single composting events, rather than for continuous flow operations.
B51: Printing: Spartan ATC System Planner prints out plans as one page in portrait orientation.
B53: Changes since version 1.0
B54: v1.00 Oct. 9, 2008: Version 1.0 released.
B56: v1.01 Dec. 17, 2013: Several changes made as follows:
B57: - Production information section for 'Processor by-product' changed to 'Animal Tissue'
B58: - Version 1.01 beta tested and distributed at MSUE Livestock Inservice.
B60: v1.02 Mar. 3, 2014: Several changes made as follows:
B61: - Animal production sections modified to remove 'Number of animals per year' row.
B62: - Animal production section added for small ruminants.
B63: - For overlapping piles composting system, recommendation added when volume requires less than 3 pile minimum worksheet is designed for.

Sheet System Planner
G1: System Planner Worksheet
C3: Name: | G3: Address: | N3: ------> THESE COLUMNS WILL BE HIDDEN IN FINAL VERSIONS --------------------------------> | AA3: HIDE TO HERE ---------->
C4: Phone: | O4: Producer1, Total farm mortality = | P4: =IF(ProducerType=1, 0, IF(ProducerType=2, $F$23,IF(ProducerType=3,$F$34,IF(ProducerType=4,$F$45,IF(ProducerType=5,$F$56,IF(ProducerType=6,$F$67,$F$74)))))) -> 0
C5: Fax: | O5: Producer2, Total farm mortality = | P5: =IF(Producer2Type=1, 0, IF(Producer2Type=2, $F$23,IF(Producer2Type=3,$F$34,IF(Producer2Type=4,$F$45,IF(Producer2Type=5,$F$56,IF(Producer2Type=6,$F$67,$F$74)))))) -> 0
O6: Producer3, Total farm mortality = | P6: =IF(Producer3Type=1, 0, IF(Producer3Type=2, $F$23,IF(Producer3Type=3,$F$34,IF(Producer3Type=4,$F$45,IF(Producer3Type=5,$F$56,IF(Producer3Type=6,$F$67,$F$74)))))) -> 0
C7: Select first type of producer: | G7: Select type of composting system: | O7: Total farm mortality = | P7: =SUM(P4:P6) -> 0 | Q7: lb/day
C8: Select second type of producer: | O8: Days per month = | P8: =365.25/12 -> 30.4375 | S8: Tissue
C9: Select third type of producer: | S9: Density | U9: Recommendation text
S10: x<=10 | T10: Animal tissue density is ok.
D11: Target animal tissue density: | E11: 10 | F11: lb/ft3 | G11: =IF(TargetTissueDensity>15,T12,IF(TargetTissueDensity<=10,T10,T11)) -> Animal tissue density is ok. | N11: <= input a density > 15 and see what happens | S11: 10<x<=15 | T11: Intensive aeration and moisture management may be necessary.
S12: x>15 | T12: Animal tissue density exceeds state of Michigan regulations.
B13: Swine Animal Production Information
D15: Item | F15: Piglets Preweaning | G15: Breeding Herd | H15: Nursery | I15: Wean-Finish | J15: Grow-Finish
E16: Stalls: | F16: 0
E17: Total piglets farrowed per litter: | F17: 11
E18: Capacity: | G18: 0 | H18: 0 | I18: 0 | J18: 0
E19: Days per complete turn: | F19: 21 | G19: 365 | H19: 70 | I19: 168 | J19: 135
E20: Percent mortality: | F20: 0.15 | G20: 0.02 | H20: 0.05 | I20: 0.02 | J20: 0.03
E21: Average weight of animals during phase (lb): | F21: 4.5 | G21: 450 | H21: 40 | I21: 125 | J21: 150
E22: Calculated daily mortality (lb/day): | F22: =IF(F19>0, (F16*F17*F20*F21)/F19, 0) -> 0 | G22: =IF(G19>0, G18*G20*G21/G19, 0) -> 0 | H22: 0 | I22: 0 | J22: =IF(J19>0, J18*J20*J21/J19, 0) -> 0
E23: Total farm mortality: | F23: =SUM(F22:J22) -> 0 | G23: lb/day
B26: Bovine Animal Production Information
C28: Item | F28: Cows | G28: Calves | H28: Heifers | I28: Feeder Cattle
E29: Capacity: | F29: 0 | G29: 0 | H29: 0 | I29: 0
E30: Days in this production phase: | F30: 365 | G30: 365 | H30: 168 | I30: 168
E31: Percent mortality: | F31: 0.04 | G31: 0.05 | H31: 0.02 | I31: 0.02
E32: Average weight of animals during phase (lb): | F32: 1200 | G32: 110 | H32: 600 | I32: 600
E33: Calculated daily mortality (lb/day): | F33: =IF(F30>0,F29/F30,0)*F31*F32 -> 0 | G33: =IF(G30>0,G29/G30,0)*G31*G32 -> 0 | H33: 0 | I33: 0
E34: Total farm mortality: | F34: =SUM(F33:I33) -> 0 | G34: lb/day
B37: Small Ruminant Production Information
C39: Item | F39: Adults | G39: Young Stock
E40: Capacity: | F40: 0 | G40: 0
E41: Days in this production phase: | F41: 365 | G41: 365
E42: Percent mortality: | F42: 0.04 | G42: 0.05
E43: Average weight of animals during phase (lb): | F43: 150 | G43: 25
E44: Calculated daily mortality (lb/day): | F44: =(F40*F42*F43)/365 -> 0 | G44: =(G40*G42*G40)/365 -> 0
E45: Total farm mortality: | F45: =SUM(F44:G44) -> 0 | G45: lb/day
B48: Poultry Animal Production Information
C50: Item | F50: Layers | G50: Turkeys | H50: Others
E51: Capacity: | F51: 0 | G51: 0 | H51: 0
E52: Days in this production phase: | F52: 365 | G52: 122 | H52: 168
E53: Percent mortality: | F53: 0.05 | G53: 0.1 | H53: 0.02
E54: Average weight of animals during phase (lb): | F54: 6 | G54: 15 | H54: 600
E55: Calculated daily mortality (lb/day): | F55: =IF(F52>0,F51/F52,0)*F53*F54 -> 0 | G55: =IF(G52>0,G51/G52,0)*G53*G54 -> 0 | H55: 0
E56: Total farm mortality: | F56: =SUM(F55:H55) -> 0 | G56: lb/day
B59: Equine Animal Production Information
C61: Item | F61: Adults | G61: Foals
E62: Capacity: | F62: 0 | G62: 0
E63: Days in this production phase: | F63: 365 | G63: 365
E64: Percent mortality: | F64: 0.02 | G64: 0.25
E65: Average weight of animals during phase (lb): | F65: 1500 | G65: 200
E66: Calculated daily mortality (lb/day): | F66: =IF(F63>0,F62/F63,0)*F64*F65 -> 0 | G66: =IF(G63>0,G62/G63,0)*G64*G65 -> 0
E67: Total farm mortality: | F67: =SUM(F66:G66) -> 0 | G67: lb/day
B70: Animal Tissue Production Information
D72: Item | F72: Tissue
E73: Animal tissue accumulation: | F73: 0 | G73: lb/wk
E74: Total plant mortaility: | F74: =animalTissuePerWk/7 -> 0 | G74: lb/day
B77: Composting System Plan Using Bins
C78: Design Parameters | O78: Hidden bin calculations
E79: Desired time to fill bin and create a batch: | F79: 2 | G79: months | H79: ="Total farm mortality = "&TEXT(ROUND(Q79,0),"#,###")&" lb per "&F79&" month"&IF(F79=1,"","s") -> Total farm mortality = lb per 2 months | P79: Total farm mortality per time = | Q79: =binBatchDuration*MortalityPerDay*DaysPerMonth -> 0
E80: Bin length: | F80: 6 | G80: ft | H80: ="Volume needed to fill bin in desired time = "&TEXT(ROUND(Q80,0),"#,###")&" cubic ft" -> Volume needed to fill bin in desired time = cubic ft | P80: Bin volume needed to fill bin in desired time = | Q80: =binsTotalMortality/TargetTissueDensity -> 0 | R80: ft3 | S80: actual
E81: Bin width: | F81: 6 | G81: ft | H81: ="Effective volume of bin = "&TEXT(ROUND(Q81,0),"#,###")&" cubic ft" -> Effective volume of bin = 137 cubic ft | P81: Bin effective volume = | Q81: =(BinWidth*BinHeight*BinLength) - (BinWidth*TAN(RADIANS(30))*(BinHeight^2)/2) -> 136.6987298 | R81: ft3 | S81: planned
E82: Bin height: | F82: 5 | G82: ft | H82: ="Construction volume of bin = "&TEXT(ROUND(Q82,0),"#,###")&" sq ft" -> Construction volume of bin = 180 sq ft | P82: Construction volume = | Q82: =BinLength*BinWidth*BinHeight -> 180
E83: Duration of active composting in bin: | F83: 5 | G83: months | H83: =IF(Q83<3,"NOTE: A minimum of three composting bins are needed to","") -> NOTE: A minimum of three composting bins are needed to | P83: calc'd # composting bins = | Q83: =binsTotalVolumeNeeded/binsConstructionVolume+(BinCompoostingDuration/binBatchDuration) -> 2.5
E84: Number of bulking agent storage bins: | F84: 1 | H84: =IF(Q83<3,"allow for moving compost and managing distinct batches.", "") -> allow for moving compost and managing distinct batches. | P84: Number of composting bins w/ 3 min rule | Q84: =IF(calcedNumBinsNeeded>=3, calcedNumBinsNeeded, 3) -> 3
P85: % bin system is over capacity | Q85: =(binEfffectiveVolume-binsTotalVolumeNeeded)/binsTotalVolumeNeeded -> 
C86: Compost Facility Summary | H86: Recommendations
E87: Number of bins needed for active composting | F87: =ROUND(calcedNumBinsMin3+0.49,0) -> 3 | H87: =IF(Q80<=0,"", IF(Q81<Q80,O88,IF(AND(Q85>=0,Q85<=0.1),O89,O90))) ->  | N87: %Over capacity | P87: recommendation text
E88: Total number of bins needed | F88: =numBinsNeeded+BinNumStorageBins -> 4 | N88: x< 0 | O88: ="Bin system volume is "&ROUND(Q85*-100,0)&"% too small to meet anticpated mortaility rate" -> 
E89: Total construction volume of bin system | F89: =binsConstructionVolume*ROUND(binsTotalBinsNeeded,0) -> 720 | G89: ft3 | N89: 0<=x<=10% | O89: Bin system volume is appropriately size for anticipated mortality rate
E90: Total area of floor | F90: =binsTotalVolume/BinHeight -> 144 | G90: ft2 | N90: x>10% | O90: ="Bin system volume is "&ROUND(Q85*100,0)&"% larger than needed to meet anticpated mortaility rate" -> 
B92: Composting System Plan Using Windrows
C93: Design Parameters | P93: Total farm mortality per time = | Q93: =windrowFormationTime*MortalityPerDay*DaysPerMonth -> 0
E94: Desired time to form a windrow and batch: | F94: 2 | G94: months | H94: ="Total farm mortality = "&TEXT(ROUND(Q93,0),"#,###")&" lb per "&F94&" months" -> Total farm mortality = lb per 2 months | P94: Volume needed to fill windrows = | Q94: =totalMortality/TargetTissueDensity -> 0 | R94: ft3
E95: Windrow length: | F95: 18 | G95: ft | H95: ="Volume needed to fill windrow in desired time = "&TEXT(ROUND(Q94,0),"#,###")&" cubic ft" -> Volume needed to fill windrow in desired time = cubic ft | P95: Effective volume of windrows = | Q95: =0.67*windrowWidth*compostHeight*windrowLength -> 1302.48 | R95: ft3
E96: Windrow width: | F96: 18 | G96: ft | H96: ="Effective volume of windrow = "&TEXT(ROUND(Q95,0),"#,###")&" cubic ft" -> Effective volume of windrow = 1,302 cubic ft | P96: calc'd # of windrows needed | Q96: =((windrowsVolumeNeeded/windrowEffectiveVolume)+compostingDuration)/windrowFormationTime -> 2
E97: Height of compost material: | F97: 6 | G97: ft | P97: Number of windrows w/ 3 min rule | Q97: =IF(calcedNumWindrows>=3, calcedNumWindrows, 3) -> 3
E98: Duration of active composting in windrow/batch: | F98: 4 | G98: months | P98: % windrows is over capacity | Q98: =(windrowEffectiveVolume-windrowsVolumeNeeded)/windrowsVolumeNeeded -> 
E99: Equipment working space or apron width: | F99: 10 | G99: ft
C101: Compost Facility Summary | H101: Recommendations
E102: Exact number of windrows needed | F102: =ROUND(calcedNumWindrowsMin3+0.49,0) -> 3 | H102: =IF(Q94<=0,"", IF(Q95<Q94,O103,IF(AND(Q98>=0,Q98<=0.1),O104,O105))) ->  | N102: %Over capacity | P102: recommendation text
E103: Apron area needed to form and turn windrows | F103: =((windrowApronWidth*(numWindrowsNeeded+1))*(windrowLength+(2*windrowApronWidth)))+((windrowWidth*windrowApronWidth)*(numWindrowsNeeded*2)) -> 2600 | G103: ft2 | N103: x< 0 | O103: ="Total windrow volume is "&ROUND(Q98*-100,0)&"% too small to meet anticpated mortaility rate" -> 
E104: Total efffective volume of system | F104: =windrowEffectiveVolume*numWindrowsNeeded -> 3907.44 | G104: ft3 | N104: 0<=x<=10% | O104: Total windrow volume is appropriately size for anticipated mortality rate
E105: Size of pad including working space | F105: =(numWindrowsNeeded*windrowLength*windrowWidth) + windrowsApronArea -> 3572 | G105: ft2 | N105: x>10% | O105: ="Total windrow volume is "&ROUND(Q98*100,0)&"% larger than needed to meet anticpated mortaility rate" -> 
B107: Composting System Plan Using Piles
C108: Design Parameters | P108: Total farm mortality per time = | Q108: =PilesFillTime*MortalityPerDay*DaysPerMonth -> 0
E109: Desired time to form pile and establish a batch: | F109: 1 | G109: months | H109: ="Total farm mortality = "&TEXT(ROUND(Q108,0),"#,###")&" lb per "&F109&" month"&IF(F109=1,"","s") -> Total farm mortality = lb per 1 month | P109: Volume needed to construct piles = | Q109: =pileTotalMortalityPerMonth/TargetTissueDensity -> 0 | R109: ft3
E110: Length of pile: | F110: 12 | G110: ft | H110: ="Volume needed to construct a pile in desired time = "&TEXT(ROUND(Q109,0),"#,###")&" cubic ft" -> Volume needed to construct a pile in desired time = cubic ft | P110: Effective volume of piles = | Q110: =pileWidth*pileHeight * (0.67*pileLength - TAN(RADIANS(30))*pileHeight) -> 492.6524899 | R110: ft3
E111: Width at base of pile: | F111: 18 | G111: ft | H111: ="Effective volume of a pile = "&TEXT(ROUND(Q110,0),"#,###")&" cubic ft" -> Effective volume of a pile = 493 cubic ft | P111: calc'd # of piles needed | Q111: =(((pileTotalMortalityPerMonth/TargetTissueDensity)/pileEffectiveVolume)+pileCompostingDuration)/PilesFillTime -> 2
E112: Height of compost material: | F112: 8 | G112: ft | P112: Number of piles w/ 3 min rule | Q112: =IF(calcedNumPiles>=3, calcedNumPiles, 3) -> 3
E113: Duration of active composting for pile or batch: | F113: 2 | G113: months | P113: % piles is over capacity | Q113: =(pileEffectiveVolume-pileConstructionVolume)/pileConstructionVolume -> 
E114: Equipment working space or apron width: | F114: 10 | G114: ft
C116: Compost Facility Summary | H116: Recommendations
E117: Total number of piles needed | F117: =ROUND(calcedNumPilesMin3+0.49,0) -> 3 | H117: =IF(Q109<=0,"", IF(Q110<Q109,O118,IF(AND(Q113>=0,Q113<=0.1),O119,O120))) ->  | N117: %Over capacity | P117: recommendation text
E118: Apron area needed to form and turn piles | F118: =(2*(pileApronWidth) *((numPilesNeeded*pileLength)+(pileApronWidth*2))) + (2*(pileApronWidth*pileWidth)) -> 1480 | G118: ft2 | N118: x< 0 | O118: ="Volume of piles is "&ROUND(Q113*-100,0)&"% too small to meet anticpated mortaility rate" -> 
E119: Total effective volume of piles | F119: =pileEffectiveVolume*numPilesNeeded -> 1477.95747 | G119: ft3 | N119: 0<=x<=10% | O119: Volume of piles is appropriately size for anticipated mortality rate
E120: Size of pad, including working space | F120: =(numPilesNeeded*(pileLength*pileWidth))+pilesApronArea -> 2128 | G120: ft2 | N120: x>10% | O120: ="Volume of piles is "&ROUND(Q113*100,0)&"% larger than needed to meet anticpated mortaility rate" -> 
B122: Composting System Plan Using Overlapping Piles
C123: Design Parameters | P123: Total farm mortality per time = | Q123: =overlapPilesFormTime*MortalityPerDay*DaysPerMonth -> 0
E124: Desired time to form pile and batch: | F124: 1 | G124: months | H124: ="Total farm mortality = "&ROUND(Q123,0)&" lb per "&F124&" month"&IF(F109=1,"","s") -> Total farm mortality = 0 lb per 1 month | P124: Volume needed to construct overlapping piles | Q124: =overlapPilesTotalMortality/TargetTissueDensity -> 0 | R124: ft3
E125: Length of individual pile: | F125: 20 | G125: ft | H125: ="Volume needed to construct pile in desired time = "&ROUND(Q124,0)&" cubic ft" -> Volume needed to construct pile in desired time = 0 cubic ft | P125: Effective volume of overlapping piles = | Q125: =overlapPilesWidth * overlapPilesHeight * ( 0.67*overlapPilesLength - TAN(RADIANS(30) ) * 0.5*overlapPilesHeight) -> 1774.495828 | R125: ft3
E126: Width at base of individual pile: | F126: 20 | G126: ft | H126: ="Effective volume of pile = "&ROUND(Q125,0)&" cubic ft" -> Effective volume of pile = 1774 cubic ft | P126: calc'd # of overlapping piles needed | Q126: =(overlapPilesTotalMortality/TargetTissueDensity/overlapPilesEffectiveVolume + overlapPilesCompostTime)/overlapPilesFormTime -> 2
E127: Height of compost material: | F127: 8 | G127: ft | P127: Number of piles w/ 3 min rule | Q127: =IF(calcedNumOverlapPiles>=3, calcedNumOverlapPiles, 3) -> 3
E128: Duration of active composting for pile or batch: | F128: 2 | G128: months | P128: % piles is over capacity | Q128: =(overlapPilesEffectiveVolume-overlapPilesVolumeNeeded)/overlapPilesVolumeNeeded -> 
E129: Equipment working space or apron width: | F129: 10 | G129: ft
C131: Compost Facility Summary | H131: Recommendations
E132: Total number of piles needed | F132: =ROUND(calcedNumOverlapPilesMin3+0.49,0) -> 3 | H132: =IF(Q124<=0,"", IF(Q125<Q124,O133,IF(AND(Q128>=0,Q128<=0.1),O134,O135))) ->  | N132: %Over capacity | P132: recommendation text | V132: Recommendation text for use case where <3 overlapping bins are needed
E133: Apron area needed to form and turn piles | F133: =2*overlapPilesWidth*numOverlapPilesNeeded*overlapPilesApronWidth -> 1200 | G133: ft2 | N133: x< 0 | O133: ="System volume is "&ROUND(Q128*-100,0)&"% is too small to meet anticpated mortaility rate" ->  | V133: ="System uses a 3 pile minimum. Your volume only needs "&ROUND(calcedNumOverlapPiles,1)&" overlapping pile(s)." -> System uses a 3 pile minimum. Your volume only needs 2 overlapping pile(s).
E134: Total effective volume of piles | F134: =overlapPilesEffectiveVolume*numOverlapPilesNeeded -> 5323.487483 | G134: ft3 | H134: =IF(calcedNumOverlapPiles<3,V133,"") -> System uses a 3 pile minimum. Your volume only needs 2 overlapping pile(s). | N134: 0<=x<=10% | O134: System volume is appropriately size for anticipated mortality rate
E135: Area of pad or floor, including working space | F135: =numOverlapPilesNeeded*overlapPilesLength*overlapPilesWidth + overlapPilesApronArea -> 2400 | G135: ft2 | N135: x>10% | O135: ="System volume is "&ROUND(Q128*100,0)&"% larger than needed to meet anticpated mortaility rate" -> 

Sheet Hidden (hidden)
B3: Producer type down down menu
B4: None
B5: Swine
B6: Bovine
B7: Small Ruminant
B8: Poultry
B9: Equine
B10: Animal Tissue
B12: Facility type drop down menu
B13: Display all types of facilities
B14: Bins
B15: Windrows
B16: Piles
B17: Overlapping piles
B20: System Planner Sheet
C21: Type of composting facility: | D21: 1
C22: Type of producer: | D22: 2
C23: Second type of producer: | D23: 3
C24: Thirde type of producer: | D24: 4
B27: Emergency Planner Sheet
C28: Type of composting facility: | D28: 1
C30: Description | D30: Value
C31: swine motality checkbox | D31: TRUE
C32: bovine mortality checkbox | D32: TRUE
C33: poultry mortality checkbox | D33: TRUE
C34: equine mortality checkbox | D34: TRUE
C35: small ruminant mortality checkbox | D35: TRUE

Sheet Documentation (hidden)
B3: Coming soon. Rk
